fUST/lending_fUST_20251031
["ID","MTS","AMOUNT","RATE_DAILY","PERIOD"]
[392713102,1761850335584,-180.0,0.00036187,15]
[392713103,1761850335612,-194.97376497,0.00036187,4]
[392713104,1761850335639,-156.063,0.00036187,44]
[392713105,1761850335938,-3538.98087383,0.00036188,2]
[392713106,1761850335972,-10000.01,0.00036188,2]
[392713107,1761850338233,-10000.01,0.00036188,2]
[392713108,1761850347278,-539.97496138,0.00034665,2]
[392713109,1761850347310,-842.86716628,0.00034665,2]
[392713110,1761850347340,-500.0,0.00035989,15]
[392713111,1761850347370,-500.0,0.00035989,15]
[392713112,1761850347454,-5234.32574468,0.00036188,2]
[392713113,1761850347467,-10000.01,0.00036188,2]
[392713114,1761850367298,150.0,0.0002589,2]
[392713115,1761850367658,177.0,0.0002789,2]
[392713116,1761850430075,-204.0,0.0002989,2]
[392713117,1761850430103,-198.18479324,0.0003189,2]
[392713118,1761850430129,-175.82579861,0.00036097,2]
[392713119,1761850430156,-336.80557257,0.00036178,3]
[392713120,1761850430182,-1158.0,0.00036178,10]
[392713121,1761850430212,-965.0,0.00036178,10]
[392713122,1761850430241,-804.17,0.00036178,10]
[392713123,1761850430272,-670.14,0.00036178,10]
[392713124,1761850430304,-475.75767116,0.00036187,15]
[392713125,1761850430432,-24.24232884,0.00036187,15]
[392713126,1761850435999,-222.52875815,0.00036187,15]
[392713127,1761850436029,-177.21648184,0.00036187,15]
[392713128,1761850436059,-500.0,0.00036187,2]
[392713129,1761850436086,-500.0,0.00036187,15]
[392713130,1761850436118,-500.0,0.00036187,15]
[392713131,1761850436155,-500.0,0.00036187,15]
[392713132,1761850436183,-500.0,0.00036187,2]
[392713133,1761850436212,-500.0,0.00036187,2]
[392713134,1761850436242,-417.28630094,0.00036187,15]
[392713135,1761850436269,-500.0,0.00036187,15]
[392713136,1761850436298,-500.0,0.00036187,15]
[392713137,1761850436478,-365.94691814,0.00036187,2]
[392713138,1761850441999,-1058.70039989,0.00036006,38]
[392713139,1761850442029,-558.45,0.00036178,10]
[392713140,1761850442058,-134.05308186,0.00036187,2]
[392713141,1761850442086,-500.0,0.00036187,2]
[392713142,1761850442116,-500.0,0.00036187,15]
[392713143,1761850442143,-500.0,0.00036187,2]
[392713144,1761850442172,-500.0,0.00036187,15]
[392713145,1761850442199,-500.0,0.00036187,2]
[392713146,1761850442227,-500.0,0.00036187,2]
[392713147,1761850442362,-497.6030365,0.00036187,15]
[392713151,1761850507679,151.0,0.00036231,120]
[392713152,1761850508301,151.0,0.00036231,120]
[392713153,1761850552977,-10000.01,0.000319,2]
[392713154,1761850553246,-502.23691132,0.000319,2]
[392713155,1761850553278,-152.62,0.00033492,60]
[392713156,1761850553310,-152.62,0.00033592,60]
[392713157,1761850553341,-152.62,0.00033692,60]
[392713158,1761850553374,-152.62,0.00033792,60]
[392713159,1761850553404,-152.62,0.00033892,60]
[392713160,1761850553435,-152.62,0.00033992,60]
[392713161,1761850553468,-152.62,0.00034092,60]
[392713162,1761850553498,-152.62,0.00034192,60]
[392713163,1761850553531,-152.62,0.00034292,60]
[392713164,1761850553563,-152.62,0.00034392,60]
[392713165,1761850553594,-152.62,0.00034492,60]
[392713166,1761850553625,-152.62,0.00034592,60]
[392713167,1761850553655,-152.62,0.00034692,60]
[392713168,1761850553686,-152.62,0.00034792,60]
[392713169,1761850553817,-152.62,0.00034892,60]
[392713170,1761850553850,-152.62,0.00034992,60]
[392713171,1761850553881,-153.0,0.00035,120]
[392713172,1761850553914,-152.62,0.00035092,60]
[392713173,1761850553946,-152.62,0.00035192,60]
[392713174,1761850553977,-152.62,0.00035292,60]
[392713175,1761850554009,-152.62,0.00035392,60]
[392713176,1761850554041,-152.62,0.00035492,60]
[392713177,1761850554073,-152.62,0.00035592,60]
[392713178,1761850554105,-152.62,0.00035692,60]
[392713179,1761850554135,-152.62,0.00035792,60]
[392713180,1761850554165,-500.0,0.00036049,4]
[392713181,1761850554269,-1179.4671095,0.00036097,2]
[392713182,1761850554301,-151.0,0.00036166,2]
[392713183,1761850554332,-151.0,0.00036166,2]
[392713184,1761850554364,-151.0,0.00036166,2]
[392713185,1761850554396,-151.0,0.00036166,2]
[392713186,1761850554430,-151.0,0.00036166,2]
[392713187,1761850554468,-151.0,0.00036166,2]
[392713188,1761850554502,-151.0,0.00036166,2]
[392713189,1761850554535,-151.0,0.00036166,2]
[392713190,1761850554567,-151.0,0.00036166,2]
[392713191,1761850554599,-151.0,0.00036166,2]
[392713192,1761850554630,-151.0,0.00036166,2]
[392713193,1761850554661,-151.0,0.00036166,2]
[392713194,1761850554693,-151.0,0.00036166,2]
[392713195,1761850554724,-151.0,0.00036166,2]
[392713196,1761850554756,-151.0,0.00036166,2]
[392713197,1761850554789,-151.0,0.00036166,2]
[392713198,1761850554829,-151.0,0.00036166,2]
[392713199,1761850554866,-151.0,0.00036166,2]
[392713200,1761850554900,-151.0,0.00036166,2]
[392713201,1761850554931,-151.0,0.00036166,2]
[392713202,1761850554961,-723.3,0.00036178,3]
[392713203,1761850555070,-224.43,0.00036178,10]
[392713204,1761850555100,-427.97,0.00036178,10]
[392713205,1761850555130,-356.64,0.00036178,10]
[392713206,1761850555155,-500.0,0.00036187,15]
[392713207,1761850555185,-2.3969635,0.00036187,15]
[392713208,1761850555213,-475.0,0.00036187,15]
[392713209,1761850555241,-500.0,0.00036187,2]
[392713210,1761850555270,-500.0,0.00036187,2]
[392713211,1761850555300,-534.44361611,0.00036187,15]
[392713212,1761850555328,-365.0,0.00036187,2]
[392713213,1761850555356,-500.0,0.00036187,2]
[392713214,1761850555384,-500.0,0.00036187,2]
[392713215,1761850555492,-500.0,0.00036187,15]
[392713216,1761850555522,-500.0,0.00036187,2]
[392713217,1761850555552,-500.0,0.00036187,2]
[392713218,1761850555579,-500.0,0.00036187,2]
[392713219,1761850555608,-500.0,0.00036187,2]
[392713220,1761850555635,-500.0,0.00036187,2]
[392713221,1761850555663,-500.0,0.00036187,2]
[392713222,1761850555691,-500.0,0.00036187,2]
[392713223,1761850555719,-500.0,0.00036187,2]
[392713224,1761850555746,-500.0,0.00036187,2]
[392713225,1761850555905,-500.0,0.00036187,2]
[392713226,1761850555936,-500.0,0.00036187,2]
[392713227,1761850556066,-500.0,0.00036187,2]
[392713228,1761850556097,-500.0,0.00036187,2]
[392713229,1761850556126,-500.0,0.00036187,2]
[392713230,1761850556156,-500.0,0.00036187,2]
[392713231,1761850556184,-500.0,0.00036187,2]
[392713232,1761850556213,-500.0,0.00036187,2]
[392713233,1761850556240,-161.49677604,0.00036187,15]
[392713234,1761850556269,-500.0,0.00036187,2]
[392713235,1761850556299,-177.01644792,0.00036187,2]
[392713236,1761850556401,-322.98355208,0.00036187,2]
[392713237,1761850556432,-500.0,0.00036187,2]
[392713238,1761850556463,-500.0,0.00036187,2]
[392713239,1761850556491,-500.0,0.00036187,2]
[392713240,1761850556519,-500.0,0.00036187,2]
[392713241,1761850557884,-297.2,0.00036178,10]
[392713242,1761850558379,-280.30511829,0.00036188,2]
[392713243,1761850558392,-500.0,0.00036188,2]
[392713244,1761850558406,-5354.04289584,0.00036188,2]
[392713245,1761850558422,-10000.01,0.00036188,2]
[392713246,1761850558435,-10000.01,0.00036188,2]
[392713247,1761850558449,-10000.01,0.00036188,2]
[392713248,1761850558467,-297.2,0.00036188,2]
[392713249,1761850558481,-9405.61,0.00036188,2]
[392713250,1761850558495,-10000.01,0.00036188,2]
[392713251,1761850562007,-527.84,0.00036178,3]
[392713252,1761850562045,-8944.33,0.00036188,2]
[392713253,1761850562140,-10000.01,0.00036188,2]
[392713254,1761850562284,-10000.01,0.00036188,2]
[392713255,1761850565224,-10000.01,0.00036188,2]
[392713256,1761850565462,-10000.01,0.00036188,2]
[392713257,1761850565559,-10000.01,0.00036188,2]
[392713258,1761850565736,-247.67,0.00036178,10]
[392713259,1761850565769,-9504.67,0.00036188,2]
[392713260,1761850565930,-10000.01,0.00036188,2]
[392713261,1761850566064,-10000.01,0.00036188,2]
[392713262,1761850566193,-10000.01,0.00036188,2]
[392713263,1761850567979,-10000.01,0.00036188,2]
[392713264,1761850568129,-10000.01,0.00036188,2]
[392713265,1761850568266,-10000.01,0.00036188,2]
[392713266,1761850571046,-10000.01,0.00036188,2]
[392713267,1761850571167,-10000.01,0.00036188,2]
[392713268,1761850571285,-10000.01,0.00036188,2]
[392713269,1761850571417,-10000.01,0.00036188,2]
[392713270,1761850571595,-10000.01,0.00036188,2]
[392713271,1761850571717,-10000.01,0.00036188,2]
[392713272,1761850571825,-10000.01,0.00036188,2]
[392713273,1761850574168,-10000.01,0.00036188,2]
[392713274,1761850574394,-10000.01,0.00036188,2]
[392713275,1761850574511,-10000.01,0.00036188,2]
[392713276,1761850577099,-206.39,0.00036178,10]
[392713277,1761850577132,-9587.23,0.00036188,2]
[392713278,1761850577211,-10000.01,0.00036188,2]
[392713279,1761850577614,-10000.01,0.00036188,2]
[392713280,1761850577774,-10000.01,0.00036188,2]
[392713281,1761850577884,-10000.01,0.00036188,2]
[392713282,1761850578034,-10000.01,0.00036188,2]
[392713283,1761850578155,-10000.01,0.00036188,2]
[392713284,1761850580091,-10000.01,0.00036188,2]
[392713285,1761850580236,-10000.01,0.00036188,2]
[392713286,1761850580459,-10000.01,0.00036188,2]
[392713287,1761850583310,-10000.01,0.00036188,2]
[392713288,1761850583603,-10000.01,0.00036188,2]
[392713289,1761850583724,-10000.01,0.00036188,2]
[392713290,1761850583855,-10000.01,0.00036188,2]
[392713291,1761850584013,-10000.01,0.00036188,2]
[392713292,1761850584095,-10000.01,0.00036188,2]
[392713293,1761850584212,-10000.01,0.00036188,2]
[392713294,1761850586097,-10000.01,0.00036188,2]
[392713295,1761850586238,-10000.01,0.00036188,2]
[392713296,1761850586343,-10000.01,0.00036188,2]
[392713297,1761850589273,-10000.01,0.00036188,2]
[392713298,1761850589511,-10000.01,0.00036188,2]
[392713299,1761850589634,-10000.01,0.00036188,2]
[392713300,1761850589770,-10000.01,0.00036188,2]
[392713301,1761850589891,-10000.01,0.00036188,2]
[392713302,1761850589994,-10000.01,0.00036188,2]
[392713303,1761850590122,-1986.07502183,0.00036188,2]
[392713304,1761850623490,226.43786282,0.00034471,4]
[392713305,1761850638556,-4374.2547792,0.00036188,2]
[392713306,1761850638595,-1025.06257878,0.00036188,2]
[392713307,1761850638676,-226.43786282,0.00036188,2]
[392713308,1761850638709,-213.15461755,0.00036197,2]
[392713309,1761850638742,-349.0,0.00036198,7]
[392713310,1761850638772,-152.39081389,0.00036231,10]
[392713311,1761850638801,-155.33228,0.00036271,2]
[392713312,1761850638829,-156.88861,0.00036271,2]
[392713313,1761850638858,-500.0,0.00036288,30]
[392713314,1761850638887,-155.33228,0.00036295,2]
[392713315,1761850638917,-156.88861,0.00036295,2]
[392713316,1761850654431,5869.15985148,0.00036088,2]
[392713317,1761850654457,10000.01,0.00036088,2]
[392713318,1761850659895,-4130.85014852,0.00036088,2]
[392713319,1761850662932,-1200.0,0.00036087,3]
[392713320,1761850662965,-7600.01,0.00036088,2]
[392713321,1761850663165,-10000.01,0.00036088,2]
[392713322,1761850668789,-172.33986561,0.0003427,2]
[392713323,1761850668828,-9655.33026878,0.00036088,2]
[392713324,1761850668961,-10000.01,0.00036088,2]
[392713325,1761850674863,-10000.01,0.00036088,2]
[392713326,1761850675087,-10000.01,0.00036088,2]
[392713327,1761850680905,-171.99,0.00036078,10]
[392713328,1761850680940,-9656.03,0.00036088,2]
[392713329,1761850680974,-10000.01,0.00036088,2]
[392713330,1761850681802,150.0,0.0002589,2]
[392713331,1761850682261,177.0,0.0002789,2]
[392713332,1761850686930,-204.0,0.0002989,2]
[392713333,1761850686967,-9592.01,0.00036088,2]
[392713334,1761850687070,-10000.01,0.00036088,2]
[392713335,1761850803124,10000.01,0.00025205,2]
[392713361,1761851431758,-256.04000004,0.00032805,2]
[392713366,1761851431864,-914.46746984,0.00032805,2]
[392713367,1761851431875,-302.56007884,0.00032822,2]
[392713368,1761851431885,-386.80148424,0.00032822,2]
[392713388,1761851437615,-157.80665768,0.00032822,2]
[392713389,1761851437626,-968.1922523,0.00032822,2]
[392713390,1761851437636,-1512.80039421,0.00032822,2]
[392713391,1761851437646,-2176.2541351,0.00032822,2]
[392713392,1761851437658,-300.0,0.00034472,3]
[392713393,1761851437669,-300.0,0.00034472,3]
[392713394,1761851437680,-300.0,0.00034472,3]
[392713395,1761851437695,-347.0,0.00034472,3]
[392713396,1761851437705,-536.42615939,0.00034472,3]
[392713397,1761851437719,-663.57384061,0.00034472,3]
[392713398,1761851437731,-241.6868556,0.00034473,2]
[392713399,1761851437742,-435.03634007,0.00034473,2]
[392713400,1761851437752,-773.39793791,0.00034473,2]
[392713401,1761851437763,-1207.2258437,0.00034473,2]
[392713402,1761851437776,-563.51745144,0.00034503,2]
[392713403,1761851437786,-200.0,0.00036,2]
[392713404,1761851437798,-1456.449647,0.00036,20]
[392713405,1761851437809,-176.02120115,0.00036,2]
[392713406,1761851437819,-786.31140634,0.00036,2]
[392713407,1761851437829,-151.0,0.00036066,2]
[392713408,1761851437840,-151.0,0.00036066,2]
[392713409,1761851437851,-151.0,0.00036066,2]
[392713410,1761851437862,-151.0,0.00036066,2]
[392713411,1761851437872,-151.0,0.00036066,2]
[392713412,1761851437883,-151.0,0.00036066,2]
[392713413,1761851437893,-151.0,0.00036066,2]
[392713414,1761851437902,-151.0,0.00036066,2]
[392713415,1761851437912,-151.0,0.00036066,2]
[392713416,1761851437921,-151.0,0.00036066,2]
[392713417,1761851437931,-151.0,0.00036066,2]
[392713418,1761851437940,-151.0,0.00036066,2]
[392713419,1761851437949,-151.0,0.00036066,2]
[392713420,1761851437959,-151.0,0.00036066,2]
[392713421,1761851437969,-151.0,0.00036066,2]
[392713422,1761851437979,-151.0,0.00036066,2]
[392713423,1761851437989,-151.0,0.00036066,2]
[392713424,1761851438000,-151.0,0.00036066,2]
[392713425,1761851438012,-151.0,0.00036066,2]
[392713426,1761851438022,-151.0,0.00036066,2]
[392713427,1761851438034,-197.99,0.00036078,3]
[392713428,1761851438047,-593.99,0.00036078,3]
[392713429,1761851438058,-235.22,0.00036078,10]
[392713430,1761851438068,-196.01,0.00036078,10]
[392713431,1761851438078,-163.35,0.00036078,10]
[392713432,1761851438087,-500.0,0.00036087,15]
[392713433,1761851438098,-362.07863292,0.00036087,15]
[392713434,1761851438108,-417.45105962,0.00036087,15]
[392713435,1761851438119,-147.23783696,0.00036087,15]
[392713436,1761851438134,-134.36700927,0.00036087,15]
[392713437,1761851438144,-500.0,0.00036087,2]
[392713438,1761851438155,-275.0,0.00036087,15]
[392713439,1761851438167,-293.70969036,0.00036087,2]
[392713440,1761851438177,-500.0,0.00036087,2]
[392713441,1761851438188,-500.0,0.00036087,2]
[392713442,1761851438198,-173.375,0.00036087,44]
[392713443,1761851438208,-199.0,0.00036087,7]
[392713444,1761851438218,-7569.64935082,0.00036088,2]
[392713445,1761851438232,-3727.60000006,0.00036088,2]
[392713455,1761851439873,-816.75,0.00036078,10]
[392713456,1761851440005,-37614.42309639,0.00036088,2]
[392713472,1761851443898,-987.14006591,0.00036088,2]
[392713517,1761851445742,-586.36369892,0.00036088,2]
[392713519,1761851445753,-12480.61707463,0.00036088,2]
[392713522,1761851445848,-505530.74644449,0.00036088,2]
[392713523,1761851445857,-6109.5,0.000361,14]
[392713524,1761851445866,-369.2829669,0.00036154,2]
[392713525,1761851445875,-5204.5072277,0.00036154,2]
[392713526,1761851445885,-152.12316636,0.0003622,2]
[392713527,1761851445895,-155.78618954,0.0003622,7]
[392713528,1761851445905,-253.40643498,0.0003622,7]
[392713529,1761851445914,-500.0,0.0003622,7]
[392713530,1761851445923,-276.0,0.00036232,2]
[392713531,1761851445932,-400.0,0.00036235,4]
[392713532,1761851445942,-312.93491093,0.00036235,30]
[392713533,1761851445951,-297.30573806,0.00036235,30]
[392713534,1761851445960,-151.0,0.00036235,30]
[392713535,1761851445969,-389.92850089,0.00036235,30]
[392713536,1761851445978,-3857.62090263,0.00036235,30]
[392713537,1761851445987,-151.0,0.00036235,30]
[392713538,1761851445996,-151.0,0.00036235,30]
[392713539,1761851446005,-151.0,0.00036235,30]
[392713540,1761851446014,-151.0,0.00036235,30]
[392713541,1761851446023,-155.33228,0.00036245,2]
[392713542,1761851446032,-156.888611,0.00036245,2]
[392713543,1761851446041,-11861.49098629,0.00036278,2]
[392713544,1761851446052,-216.30447925,0.00036287,2]
[392713545,1761851446062,-247.20511914,0.00036287,2]
[392713546,1761851446071,-385.87174066,0.00036287,2]
[392713547,1761851446080,-213.15461755,0.00036287,2]
[392713548,1761851446090,-383.6783116,0.00036287,2]
[392713549,1761851446100,-350.46978655,0.00036287,2]
[392713550,1761851446109,-166.11442501,0.00036319,3]
[392713551,1761851446118,-442.7236351,0.00036319,3]
[392713552,1761851446127,-349.0,0.00036322,120]
[392713553,1761851446137,-284.58,0.00036361,8]
[392713554,1761851446146,-151.0,0.00036368,2]
[392713555,1761851446155,-250.29516239,0.00036368,2]
[392713556,1761851446164,-500.0,0.00036368,2]
[392713557,1761851446174,-151.0,0.00036368,2]
[392713558,1761851446183,-151.0,0.00036368,2]
[392713559,1761851446193,-154.10651508,0.00036368,2]
[392713560,1761851446202,-500.0,0.00036368,2]
[392713561,1761851446211,-297.99070714,0.00036368,2]
[392713562,1761851446220,-500.0,0.00036368,2]
[392713563,1761851446230,-155.67430614,0.00036368,2]
[392713564,1761851446239,-800.0,0.0003637,7]
[392713565,1761851446248,-425.62,0.000364,14]
[392713566,1761851446257,-151.0,0.00036423,2]
[392713567,1761851446267,-500.0,0.00036423,2]
[392713568,1761851446276,-165.17908062,0.00036423,2]
[392713569,1761851446285,-151.0,0.00036423,2]
[392713570,1761851446294,-500.0,0.00036423,2]
[392713571,1761851446304,-500.0,0.00036423,2]
[392713572,1761851446313,-347.0,0.00036443,120]
[392713573,1761851446323,-151.0,0.00036478,2]
[392713574,1761851446331,-604.0,0.00036478,2]
[392713575,1761851446340,-151.0,0.00036478,2]
[392713576,1761851446350,-231.61781403,0.00036478,2]
[392713577,1761851446359,-500.0,0.00036478,2]
[392713578,1761851446368,-500.0,0.00036494,7]
[392713579,1761851446377,-244.20155609,0.00036532,2]
[392713580,1761851446387,-291.97455635,0.00036532,2]
[392713581,1761851446395,-500.0,0.00036532,2]
[392713582,1761851446404,-341.0,0.00036541,2]
[392713583,1761851446413,-500.0,0.00036587,2]
[392713584,1761851446422,-414.50567234,0.0003663,3]
[392713585,1761851446431,-500.0,0.00036642,2]
[392713586,1761851446440,-325.0,0.00036667,2]
[392713587,1761851446449,-325.0,0.0003667,7]
[392713588,1761851446458,-310.21175811,0.00036674,2]
[392713589,1761851446467,-500.0,0.00036697,2]
[392713590,1761851446475,-500.0,0.00036752,2]
[392713591,1761851446484,-500.0,0.00036768,7]
[392713592,1761851446493,-347.0,0.00036803,7]
[392713593,1761851446503,-520.07678697,0.00036806,2]
[392713594,1761851446511,-325.0,0.00036836,2]
[392713595,1761851446520,-325.0,0.00036881,2]
[392713596,1761851446529,-325.0,0.00036947,7]
[392713597,1761851446538,-347.0,0.00036989,2]
[392713598,1761851446548,-600.0,0.0003699,30]
[392713599,1761851446558,-5052.0,0.00037002,120]
[392713600,1761851446567,-325.0,0.00037048,120]
[392713601,1761851446576,-325.0,0.00037198,7]
[392713602,1761851446585,-325.0,0.00037256,2]
[392713603,1761851446594,-5052.0,0.00037273,2]
[392713604,1761851446603,-325.0,0.00037333,2]
[392713605,1761851446612,-325.0,0.00037335,7]
[392713606,1761851446622,-682.09477618,0.00037386,2]
[392713607,1761851446631,-325.0,0.00037394,7]
[392713608,1761851446641,-400.53689892,0.00037407,2]
[392713609,1761851446650,-2700.0,0.00037435,2]
[392713610,1761851446659,-150.0,0.00037439,2]
[392713611,1761851446667,-325.0,0.00037441,120]
[392713612,1761851446677,-395.98,0.00037448,3]
[392713613,1761851446686,-5888.0,0.00037755,2]
[392713614,1761851446699,-551.48756996,0.00038386,2]
[392713615,1761851446708,-393.4980593,0.00038616,30]
[392713616,1761851446717,-302.65419824,0.0003869,2]
[392713617,1761851446726,-1162.84620409,0.00039,120]
[392713618,1761851446735,-1064.70731469,0.00039047,2]
[392713619,1761851446745,-625.21306565,0.00039068,2]
[392713620,1761851446755,-153.0,0.000392,120]
[392713621,1761851446765,-378.210361,0.000393,30]
[392713622,1761851446776,-342.0669375,0.000393,30]
[392713623,1761851446786,-322.013736,0.000393,30]
[392713624,1761851446796,-299.2815969,0.000393,30]
[392713625,1761851446806,-591.1342415,0.000393,30]
[392713626,1761851446815,-299.2815969,0.000393,30]
[392713627,1761851446824,-591.1342415,0.000393,30]
[392713628,1761851446833,-591.1342415,0.000393,30]
[392713629,1761851446842,-591.1342415,0.000393,30]
[392713630,1761851446852,-591.1342415,0.000393,30]
[392713631,1761851446862,-2700.0,0.00039493,7]
[392713632,1761851446871,-425.62,0.000396,14]
[392713633,1761851446881,-6109.5,0.000396,14]
[392713634,1761851446890,-199.572655,0.00039654,2]
[392713635,1761851446899,-2167.0,0.0004006,2]
[392713636,1761851446909,-984.0,0.0004006,2]
[392713637,1761851446918,-633.0,0.0004006,2]
[392713638,1761851446927,-5052.0,0.00040114,7]
[392713639,1761851446936,-552.8074793,0.00040122,30]
[392713640,1761851446946,-1612.7737945,0.00040669,2]
[392713641,1761851446956,-720.0,0.0004069,90]
[392713642,1761851446965,-1161.2825312,0.00040758,2]
[392713643,1761851446974,-1255.2756633,0.00040791,2]
[392713644,1761851446983,-150.0,0.00040842,2]
[392713645,1761851446993,-345.54462177,0.00041019,2]
[392713646,1761851447002,-359.858475,0.000417,2]
[392713647,1761851447011,-259.1171571,0.00041785,2]
[392713648,1761851447020,-280.0898597,0.00041818,2]
[392713649,1761851447029,-5297.0,0.00042103,120]
[392713650,1761851447038,-153.0,0.000434,120]
[392713651,1761851447048,-150.0,0.00044246,2]
[392713652,1761851447058,-74046.60502184,0.0004455,60]
[392713653,1761851447068,-864.0,0.00044758,90]
[392713654,1761851447078,-176.02120115,0.000449,2]
[392713655,1761851447087,-786.31140633,0.00045172,2]
[392713656,1761851447096,-199.572655,0.00046143,2]
[392713657,1761851447105,-153.0,0.000476,120]
[392713658,1761851447115,-150.0,0.00047649,2]
[392713659,1761851447124,-1000.0,0.00049234,90]
[392713660,1761851447133,-425.62,0.000495,14]
[392713661,1761851447144,-156.888611,0.00049649,60]
[392713662,1761851447153,-54220.49051159,0.000498,120]
[392713663,1761851447163,-139999.921,0.000499,120]
[392713664,1761851447171,-151.0,0.000499,120]
[392713665,1761851447180,-6109.5,0.000499,14]
[392713666,1761851447190,-153.144065,0.000499,30]
[392713667,1761851447199,-532.411105,0.000499,15]
[392713668,1761851447208,-532.411105,0.000499,15]
[392713669,1761851447217,-532.411105,0.000499,15]
[392713670,1761851447226,-532.411105,0.000499,15]
[392713671,1761851447235,-211.103357,0.000499,120]
[392713672,1761851447245,-211.103357,0.000499,120]
[392713673,1761851447254,-211.103357,0.000499,120]
[392713674,1761851447263,-211.103357,0.000499,120]
[392713675,1761851447272,-151.0,0.000499,120]
[392713676,1761851447282,-151.0,0.000499,120]
[392713677,1761851447291,-773.826046,0.000499,120]
[392713678,1761851447301,-151.0,0.000499,120]
[392713679,1761851447311,-773.826046,0.000499,120]
[392713680,1761851447321,-151.0,0.000499,120]
[392713681,1761851447331,-773.826046,0.000499,120]
[392713682,1761851447340,-773.826046,0.000499,120]
[392713683,1761851447350,-151.0,0.000499,120]
[392713684,1761851447359,-151.0,0.000499,120]
[392713685,1761851447369,-151.0,0.000499,120]
[392713686,1761851447379,-151.0,0.000499,120]
[392713687,1761851447388,-440.661864,0.000499,120]
[392713688,1761851447397,-440.661864,0.000499,120]
[392713689,1761851447406,-440.661864,0.000499,120]
[392713690,1761851447415,-440.661864,0.000499,120]
[392713691,1761851447424,-343.224243,0.000499,120]
[392713692,1761851447433,-343.224243,0.000499,120]
[392713693,1761851447442,-343.224243,0.000499,120]
[392713694,1761851447451,-343.224243,0.000499,120]
[392713695,1761851447460,-151.0,0.000499,120]
[392713696,1761851447469,-199.479752,0.000499,120]
[392713697,1761851447478,-151.0,0.000499,120]
[392713698,1761851447487,-151.0,0.000499,120]
[392713699,1761851447496,-151.0,0.000499,120]
[392713700,1761851447505,-151.0,0.000499,120]
[392713701,1761851447514,-151.0,0.000499,120]
[392713702,1761851447524,-151.0,0.000499,120]
[392713703,1761851447534,-151.0,0.000499,7]
[392713704,1761851447543,-151.0,0.000499,7]
[392713705,1761851447554,-151.0,0.000499,120]
[392713706,1761851447564,-151.0,0.000499,120]
[392713707,1761851447575,-151.0,0.000499,7]
[392713708,1761851447585,-296.0049,0.000499,7]
[392713709,1761851447595,-151.0,0.000499,120]
[392713710,1761851447605,-241.113926,0.00050276,2]
[392713711,1761851447614,-34999.99999997,0.00050333,120]
[392713712,1761851447623,-151.0,0.000504,25]
[392713713,1761851447632,-150.0,0.00051053,2]
[392713714,1761851447642,-153.0,0.000518,120]
[392713715,1761851447651,-500.0,0.00052054,120]
[392713716,1761851447661,-500.0,0.00052054,120]
[392713717,1761851447670,-200.06730006,0.00052054,120]
[392713718,1761851447679,-313.21970817,0.00052054,120]
[392713719,1761851447688,-256.026869,0.00052054,120]
[392713720,1761851447700,-202.87996775,0.00052054,120]
[392713721,1761851447709,-500.0,0.00052054,120]
[392713722,1761851447718,-500.0,0.00052054,120]
[392713723,1761851447727,-500.0,0.00052054,120]